Cogmind - Beta 16.1 @@@ ROGUE MODE // 2026.04.22 @ 11:38:13 Player: Jgu1971 Result: Destroyed by D-53 Grenadier with Mini Grenade Launcher Performance ------------- Evolutions (0) 0 Regions Visited (2) 400 Robots Destroyed (8) 40 Value Destroyed (97) 97 Prototype IDs (0) 0 Alien Tech Used (0) 0 Bonus (0) 0 TOTAL SCORE: 537 Bonus ------- None Cogmind --------- Core Integrity 0/250 Matter 275/300 Energy 28/100 System Corruption 0% Temperature Cool (8) Movement Core (450) Ox8 Location -10/Mines Parts ------- > --- POWER (1) -------- (None) > --- PROPULSION (2) --- (None) > --- UTILITY (2) ------ Large Storage Unit Terrain Scanner > --- WEAPON (2) ------- Small Laser Beam Cannon > --- INVENTORY (15) --- Light Ion Engine Large Matter Pod (10) Sensor Array Terrain Scanner Seismic Detector Targeting Computer Light Armor Plating Light Armor Plating Small Laser Welding Torch Peak State ------------ > --- POWER ------------ Light Ion Engine > --- PROPULSION ------- Aluminum Leg Aluminum Leg > --- UTILITY ---------- Large Storage Unit Terrain Scanner > --- WEAPON ----------- Beam Cannon Grenade Launcher > --- INVENTORY -------- Light Ion Engine Large Matter Pod Terrain Scanner Seismic Detector EM Pulse Gun EM Pulse Gun Small Laser Small Laser Beam Cannon Welding Torch [Rating: 8] Favorites ----------- Power Light Ion Engine Engine Light Ion Engine Propulsion Aluminum Leg Leg Aluminum Leg Utility Terrain Scanner Device Terrain Scanner Storage Large Storage Unit Weapon Grenade Launcher Energy Gun EM Pulse Gun Energy Cannon Beam Cannon Launcher Grenade Launcher Build | -11 -10 -10 ------- Run | Yrd Mat Min Slots Evolved . | . . . Power . | . . . Propulsion . | . . . Utility . | . . . Weapon . | . . . Parts Attached 13 | 6 4 3 Power 1 | 1 . . Engine 1 | 1 . . Core . | . . . Reactor . | . . . Propulsion 2 | 2 . . Treads . | . . . Leg 2 | 2 . . Wheel . | . . . Hover . | . . . Flight . | . . . Utility 3 | 1 2 . Device 1 | . 1 . Storage 2 | 1 1 . Processor . | . . . Hackware . | . . . Protection . | . . . Artifact . | . . . Weapon 7 | 2 2 3 Energy Gun 4 | 2 . 2 Energy Cannon 2 | . 1 1 Ballistic Gun . | . . . Ballistic Cannon . | . . . Launcher 1 | . 1 . Special Weapon . | . . . Impact Weapon . | . . . Slashing Weapon . | . . . Piercing Weapon . | . . . Special Melee Weapon . | . . . Unidentified Prototypes . | . . . Parts Lost 7 | . . 7 Power 1 | . . 1 Propulsion 2 | . . 2 Utility . | . . . Weapon 4 | . . 4 Highest Loss Streak 7 | . . 7 To Critical Strikes . | . . . Average Backups 9 | 1 9 13 Power . | . 1 1 Propulsion . | . . . Utility 3 | . 3 7 Weapon 4 | . 4 4 Tool/Special . | . . . Unused Backups 9 | . . 9 Power 1 | . . 1 Propulsion . | . . . Utility 7 | . . 7 Weapon . | . . . Tool/Special 1 | . . 1 Average Slot Usage (%) 99 | . 99 100 Engine 14 | . 14 14 Leg 28 | . 28 28 Device 13 | . 13 14 Storage 14 | . 14 14 Energy Gun 3 | . 3 1 Energy Cannon 11 | . 10 14 Launcher 13 | . 13 12 Peak Build Rating 8 | 6 8 8 Average Rating 7 | 4 7 7 On Entrance 4 | . 6 8 Avg Prop Armor Cover (%) . | . . . Naked Turns . | . . . Heaviest Build 30 | 11 30 30 Greatest Support 20 | 20 20 20 Greatest Overweight (x) 1 | . 1 1 Average Overweight (x) . | . . 1 Largest Inventory Capacity 15 | 8 15 15 Average Capacity 13 | 7 14 15 Most Carried 14 | 4 14 14 Average Carried 9 | 1 9 13 Final Capacity 15 | 8 15 15 Final Carried 14 | 2 14 10 Class Distribution -------------------- 100% | Mutant Dominant Class ---------------- Mutant | -10/Materials Mutant | -10/Mines Resources | -11 -10 -10 ----------- Run | Yrd Mat Min Matter Collected 360 | 214 107 39 Remotely . | . . . Salvage Created 90 | . 90 . Parts 12 | . 12 . Haulers Intercepted . | . . . Recyclers Shooed . | . . . Parts Field Recycled . | . . . Retrieved Matter . | . . . Parts Self-Destructed . | . . . Prevented . | . . . Parts Restored . | . . . Kills | -11 -10 -10 ------- Run | Yrd Mat Min Combat Hostiles Destroyed 5 | . 5 . Cannons 1 | . 1 . AOE 4 | . 4 . Classes Destroyed 3 | . 3 . Builder 1 | . 1 . Watcher 2 | . 2 . Swarmer 5 | . 5 . Best Kill Streak 4 | . 4 . Combat Bots Only 3 | . 3 . Max Kills in Single Turn 3 | . 3 . Gunslinging . | . . . Exploded 1 | . 1 . Melee . | . . . Uniques/NPCs Destroyed . | . . . Combat | -11 -10 -10 -------- Run | Yrd Mat Min Hostile Shots Fired 22 | . 8 14 Missed 4 | . 3 1 Hits 18 | . 5 13 Projectile 18 | . 5 13 AOE 14 | . . 14 Damage Taken 788 | . 203 585 Core 269 | . 93 176 Absorbed by Shields . | . . . Core Remaining (%) 100 | 100 . . Volleys Fired 10 | . 6 4 Largest 2 | . 2 2 Hottest 100 | . 90 100 Shots Fired 19 | . 12 7 Gun 5 | . 2 3 Cannon 7 | . 4 3 Launcher 7 | . 6 1 Special . | . . . Kinetic . | . . . Thermal 8 | . 4 4 Explosive 7 | . 6 1 Electromagnetic 4 | . 2 2 Robot Hit Streak 2 | . 2 2 Robot Miss Streak 4 | . 4 1 Penetration Max . | . . . Secondary Targets . | . . . Shots Hit Robots 6 | . 3 3 Core Hits 12 | . 10 2 Critical Kills . | . . . Critical Parts Destroyed . | . . . Critical Strikes . | . . . Melee Attacks . | . . . Impact . | . . . Slashing . | . . . Piercing . | . . . Sneak Attacks . | . . . Combat Hostiles . | . . . Follow-up Attacks . | . . . Damage Inflicted 491 | . 452 39 Guns 21 | . . 21 Cannons 35 | . 35 . Explosions 435 | . 417 18 Melee . | . . . Ramming . | . . . Kinetic . | . . . Thermal 46 | . 35 11 Explosive 435 | . 417 18 Electromagnetic 10 | . . 10 Impact . | . . . Slashing . | . . . Piercing . | . . . Highest Corruption . | . . . Average Corruption . | . . . Corruption Purged . | . . . Corruption Blocked . | . . . Overload Shots . | . . . Overflow Damage 13 | . 13 . Projectiles . | . . . Explosions 13 | . 13 . Melee . | . . . Knockbacks . | . . . Impact . | . . . Kinetic . | . . . Secondary . | . . . Self-Inflicted Damage 164 | . 164 . Shots 5 | . 5 . Rammed . | . . . Targets Rammed . | . . . Kicked . | . . . Crushed . | . . . Highest Temperature 60 | . 60 39 Average Temperature 21 | . 21 21 Received Heat Transfer . | . . . Siege Activations . | . . . Martial Activations . | . . . Shielding Activations . | . . . Robots Disrupted . | . . . Combat Hostiles . | . . . Robots Corrupted . | . . . Combat Hostiles . | . . . Parts Fried . | . . . Impact Corruptions . | . . . Robots Melted . | . . . Combat Hostiles . | . . . Parts Melted . | . . . Heat Transferred 99 | . 74 25 Parts Sabotaged . | . . . Parts Stolen . | . . . Parts Stripped . | . . . Power Chain Reactions . | . . . Alert | -11 -10 -10 ------- Run | Yrd Mat Min Maximum Alert Level . | . . . Low Security (%) 100 | 100 100 100 Level 1 . | . . . Level 2 . | . . . Level 3 . | . . . Level 4 . | . . . Level 5 . | . . . High Security . | . . . Max Security . | . . . Peak Influence 80 | . 80 4 Initial 4 | . . 4 Average 20 | . 24 . Influence Increases 230 | . 226 4 Destroy 0b10 Robot/C 100 | . 100 . Destroy 0b10 Robot/NC 15 | . 15 . Destroy Leader 24 | . 24 . Successful Hack 4 | . 4 . Disable Machine 15 | . 15 . Destroy Structure 72 | . 68 4 Influence Decreases 230 | . 213 17 Entered New Map 9 | . . 9 Time Decay 221 | . 213 8 Squads Dispatched 2 | . 2 . Investigation 1 | . 1 . Extermination . | . . . Reinforcement 1 | . 1 . Assault . | . . . Garrison . | . . . Intercept . | . . . Searches Triggered . | . . . Construction Impeded . | . . . Haulers Reinforced . | . . . Active Scanning Responses . | . . . Cargo Convoy Interrupts . | . . . Stealth | -11 -10 -10 --------- Run | Yrd Mat Min Distress Signals . | . . . Communications Jammed . | . . . Distress Signals . | . . . Times Spotted 14 | . 12 2 Peak Tracking Total 4 | . 4 2 Tactical Retreats . | . . . Traps | -11 -10 -10 ------- Run | Yrd Mat Min Traps Triggered 1 | . 1 . Indirectly . | . . . Trap Hack Attempts . | . . . Triggered . | . . . Disarmed . | . . . Reprogrammed . | . . . Reused . | . . . Traps Extracted . | . . . Installed . | . . . Triggered . | . . . Machines | -11 -10 -10 ---------- Run | Yrd Mat Min Machines Disabled 1 | . 1 . Max in Single Turn 1 | . 1 . Machines Repaired . | . . . Machines Dismantled . | . . . Machines Sabotaged . | . . . Overloaded Fab Kills . | . . . Hacking | -11 -10 -10 --------- Run | Yrd Mat Min Machines Accessed 5 | . 5 . Terminals 4 | . 4 . Fabricators . | . . . Repair Stations . | . . . Recycling Units 1 | . 1 . Scanalyzers . | . . . Garrison Access . | . . . Total Hacks 8 | . 8 . Successful 6 | . 6 . Failed 2 | . 2 . Catastrophic . | . . . Database Lockouts . | . . . Manual . | . . . Terminals 6 | . 6 . Fabricators . | . . . Repair Stations . | . . . Recycling Units 2 | . 2 . Scanalyzers . | . . . Garrison Access . | . . . Terminal Hacks 5 | . 5 . Record 2 | . 2 . Emergency Access Points 1 | . 1 . Dispatch Records 2 | . 2 . Fabricator Hacks . | . . . Repair Station Hacks . | . . . Recycling Unit Hacks 1 | . 1 . Report Inventory 1 | . 1 . Scanalyzer . | . . . Garrison Access Hacks . | . . . Unauthorized Hacks . | . . . Terminals . | . . . Fabricators . | . . . Repair Stations . | . . . Recycling Units . | . . . Scanalyzers . | . . . Garrison Access . | . . . Data Cores Recovered . | . . . Used . | . . . Hacking Detections 3 | . 3 . Full Trace Events . | . . . Feedback Events . | . . . Feedback Blocked . | . . . Robot Schematics Acquired . | . . . Robots Built . | . . . Authchips . | . . . Time . | . . . Total Robot Build Rating . | . . . Part Schematics Acquired . | . . . Parts Built . | . . . Authchips . | . . . Time . | . . . Total Part Build Rating . | . . . Part Studies Acquired . | . . . Parts Repaired . | . . . Time . | . . . Parts Recycled . | . . . Recycled Matter . | . . . Retrieved Matter . | . . . Retrieved Components . | . . . Parts Scanalyzed . | . . . Part Schematics Acquired . | . . . Parts Damaged . | . . . Bothacking | -11 -10 -10 ------------ Run | Yrd Mat Min Used RIF Installer . | . . . Robots Hacked . | . . . Non-combat . | . . . Combat . | . . . Robot Hacks Applied . | . . . Relay Couplers Released . | . . . Fabnet Peak Effective % . | . . . Robots Rewired . | . . . Allies Hacked . | . . . Hacks Repelled . | . . . Allies | -11 -10 -10 -------- Run | Yrd Mat Min Total Allies . | . . . Largest Group . | . . . Highest-Rated Group . | . . . Highest-Rated Ally . | . . . Total Orders . | . . . Ally Attacks . | . . . Total Damage . | . . . Kills . | . . . Allies Corrupted . | . . . Allies Melted . | . . . Intel | -11 -10 -10 ------- Run | Yrd Mat Min Active Infowar (turns) 898 | . 807 91 Terrain 898 | . 807 91 Robot Analysis Total . | . . . Derelict Logs Recovered 1 | . . 1 Drone Launches . | . . . Drone Recoveries . | . . . Exploration | -11 -10 -10 ------------- Run | Yrd Mat Min Turns Passed 968 | 58 819 91 Spaces Moved 519 | 42 436 41 Core 8 | 8 . . Treads . | . . . Legs 511 | 34 436 41 Wheels . | . . . Hover . | . . . Flight . | . . . Fastest Speed 50 | 50 120 190 Average Speed 173 | 106 178 190 Slowest Speed 190 | 120 190 190 Overloaded Moves . | . . . Propulsion Burnouts . | . . . Robots Hopped . | . . . Potential Cave-ins 1 | . 1 . Cave-ins Triggered . | . . . Exploration Rate (%) 21 | 3 51 11 Regions Visited 2 Branch Regions 1 Pre-discovered Areas 1 | . . 1 Known Exits Taken . | . . . Unknown Exits Taken 2 | 1 1 . Scrap Searched 1 | . . 1 Spaces Dug . | . . . Terrain Destroyed 71 | . 67 4 Melee . | . . . Projectile . | . . . AOE 71 | . 67 4 Terrain Rammed . | . . . Walls Destroyed . | . . . Machines Disabled . | . . . Actions | -11 -10 -10 --------- Run | Yrd Mat Min Total 568 | 55 464 49 Wait 4 | . 4 . Move 517 | 41 435 41 Hop . | . . . Pick Up 22 | 8 14 . Fast Attach . | . . . Attach 11 | 6 1 4 Detach . | . . . Swap 3 | . 3 . Drop 1 | . 1 . Fire 10 | . 6 4 Melee . | . . . Ram . | . . . Kick . | . . . Crush . | . . . Escape Stasis . | . . . Rewire . | . . . Trap . | . . . Miscellaneous . | . . . Route ------- -11/Scrapyard -10/Materials -10/Mines History --------- Turn | Location | Event 20 | -11/Scrapyard | Discovered new exit (range 16) 59 | -11/Scrapyard | Entered Materials 312 | -10/Materials | Build established: Mutant 820 | -10/Materials | Discovered new exit (range 12) 878 | -10/Materials | Entered Mines 923 | -10/Mines | Met a Derelict bent on vengeance 935 | -10/Mines | Assembled infested the area 962 | -10/Mines | Core integrity fell below 50% 968 | -10/Mines | Core integrity fell below 20% 969 | -10/Mines | Destroyed by D-53 Grenadier with Mini Grenade Launcher Last Messages --------------- 00933_ Acquired 39 matter. 00935_ ALERT: Infestation in the mines, dispatching Demolisher response squad. 00956_ C-45 Heavy ARC bursts open, deploying its payload. 00956_ D-53 Grenadier unfolds itself. 00958_ The unstable cave ceiling collapses. 00958_ K-01 Serf collects debris. 00959_ Grenade Launcher destroyed. 00961_ Beam Cannon destroyed. 00961_ Lgt. Ion Engine destroyed. 00961_ Aluminum Leg destroyed. 00962_ K-01 Serf collects debris. 00963_ EM Pulse Gun destroyed. 00964_ Aluminum Leg destroyed. 00965_ K-01 Serf collects debris. 00966_ EM Pulse Gun destroyed. 00967_ The unstable cave ceiling collapses. 00968_ K-01 Serf collects debris. 00969_ The unstable cave ceiling collapses. Map ----- +----------------------------------------------------+ | ?????????????????????????????????????????? | | ?????????????????????????????????????????? | | ?????????????????????????????????????????? | | ?????????????????????????????????????????? | | ?????????????????????????????????????????? | | ?????????????????????????????????????????? | | ?????????????????????????????????????????? | | ???????????????????????????"?????????????? | | ?????????????????????????????????????????? | | ?????????????????????????????????????????? | | ????????????????????????? ???????????????? | | ?????????????????????????????????????????? | | ???????????????????????#??????#?????#????? | | ????????????????????????????????####?????? | | ??????????????????????#????????## ##?????? | | ?????????????????????###?????### ##????? | | ????????????????????## ##??## ##???? | | ????????????????????# ???# #???? | | ???????????????????## #?## #???? | | ??????????????????##[ ##?## ## ##???? | | ????????????# ???## ######### #????? | | ???????????# ## ##????# #????? | | ??????????? k ##???# #????? | | ?????????? !%d #???# ##???? | | ?????????? d #?#?# #????? | | ?????????????# @ #???# #????# | | ??????????????# # ##### #?##?? | | ???????????????????## # #?#??? | | ??????????????#?????### ## #?#??# | | ?????????????????????## ####????? | | ??????????????????????### ] ##??????? | | ????????????????? ???#??## #####???#???? | | ?????????????????????????#####????????#??? | | ????????????????????????#????????????????? | | ????????????????????????#??????????#?????? | | ?????????????????????????????????????????? | | ??????????????????????????????#??????????? | | ?????????????????#?????????? ????????????? | | ?????????????????????????????????????????? | | ?????????????????????????#??????????????#? | | ?????????????????????????????????????????? | | ?????????????????????????????????????????? | | ?????????????????????????????????????????? | | ?????????????????????????????????????????? | | ?????????????????????????????????????????? | | ?????????????????????????????????????????? | | ?????????????????????????????????????????? | | ?????????????????????????????????????????? | | ?????????????????????????????????????????? | | ?????????????????????????????????????????? | +----------------------------------------------------+ Best States ------------- Heat Dissipation 25 Energy Generation 10 Energy Capacity 125 Matter Stores 300 Matter Capacity 300 Sight Range 16 Terrain Scan Range 14 Terrain Scan Density 10 Evasion (%) 55 Item Schematics ----------------- None Robot Schematics ------------------ None Fabricated ------------ Nothing Repaired ---------- Nothing Studied --------- None Alien Tech Used ----------------- None Achievements -------------- Let's See Who's Tougher Challenges ------------ None Game ------ Seed ElectronTiamatStatue Manual? 0 Play Time 00:20:23 Cumulative 5.8 hours Start 2026.04.22 @ 11:15:35 End 2026.04.22 @ 11:38:13 Sessions 1 Manual Loads 0 Difficulty Rogue Special Mode None Game No. 5 Rogue 5 Adventurer 0 Explorer 0 Win Type - Total 0 Types 0/0/0/0/0/0/0/0/0/0 Lore% 5 Gallery% 5 Achievement% 6 Wizard Run 0 Options --------- Layout 1 ASCII 0 Keyboard 0 Movement Arrows Keybinds 0 Fullscreen 1 Font 24/Tamsyn Map View 50x40 Zoom Use 0% Tactical HUD 1 Map Filters NONE Filters NONE Steam 1 RUN: 47515536-effb-46f6-8c22-a7792ae35b8d